fUST/lending_fUST_20260117
["ID","MTS","AMOUNT","RATE_DAILY","PERIOD"]
[402333426,1768659103203,-1398.2,0.00018356,3]
[402333427,1768659103212,-500.0,0.00018356,3]
[402333428,1768659103223,-500.0,0.00018356,3]
[402333429,1768659103232,-500.0,0.00018356,3]
[402333430,1768659103241,-752.83,0.00018356,3]
[402333431,1768659103252,-500.0,0.00018356,3]
[402333432,1768659103261,-500.0,0.00018356,3]
[402333433,1768659103270,-1507.14,0.00018356,3]
[402333434,1768659103279,-500.0,0.00018356,3]
[402333435,1768659103289,-1240.14,0.00018356,3]
[402333436,1768659103301,-646.22,0.00018356,3]
[402333437,1768659103311,-764.23,0.00018356,3]
[402333438,1768659103321,-500.0,0.00018356,3]
[402333439,1768659103331,-500.0,0.00018356,3]
[402333440,1768659103341,-500.0,0.00018356,3]
[402333441,1768659103350,-500.0,0.00018356,3]
[402333442,1768659103360,-500.0,0.00018356,3]
[402333443,1768659103369,-1946.38,0.00018356,3]
[402333444,1768659103379,-500.0,0.00018356,3]
[402333445,1768659103388,-681.74,0.00018356,3]
[402333446,1768659103398,-635.32816024,0.00018356,3]
[402333447,1768659103408,-1174.25,0.00018356,3]
[402333448,1768659103417,-500.0,0.00018356,3]
[402333449,1768659103427,-1047.71,0.00018356,3]
[402333450,1768659103436,-500.0,0.00018356,3]
[402333451,1768659103445,-1121.76,0.00018356,3]
[402333452,1768659103457,-628.37,0.00018356,3]
[402333453,1768659103466,-1173.68,0.00018356,3]
[402333454,1768659103475,-895.09,0.00018356,3]
[402333455,1768659103485,-1376.86,0.00018356,3]
[402333456,1768659103495,-175.73098182,0.00018356,3]
[402333457,1768659103505,-512.63,0.00018356,3]
[402333458,1768659103514,-718.33,0.00018356,3]
[402333459,1768659103524,-763.87,0.00018356,3]
[402333460,1768659103534,-1290.77,0.00018356,3]
[402333461,1768659103543,-500.0,0.00018356,3]
[402333462,1768659103552,-1726.7,0.00018356,3]
[402333463,1768659103563,-500.0,0.00018356,3]
[402333464,1768659103573,-887.81,0.00018356,3]
[402333465,1768659103583,-500.0,0.00018356,3]
[402333466,1768659103592,-500.0,0.00018356,3]
[402333467,1768659103601,-500.0,0.00018356,3]
[402333468,1768659103611,-553.61,0.00018356,3]
[402333469,1768659103621,-1005.15,0.00018356,3]
[402333470,1768659103631,-500.0,0.00018356,3]
[402333471,1768659103640,-815.87,0.00018356,3]
[402333472,1768659103650,-500.0,0.00018356,3]
[402333473,1768659103659,-822.47,0.00018356,3]
[402333474,1768659103668,-1463.58,0.00018356,3]
[402333475,1768659103677,-500.0,0.00018356,3]
[402333476,1768659103686,-500.0,0.00018356,3]
[402333477,1768659103696,-500.0,0.00018356,3]
[402333478,1768659103705,-500.0,0.00018356,3]
[402333479,1768659103714,-500.0,0.00018356,3]
[402333480,1768659103724,-500.0,0.00018356,3]
[402333481,1768659103733,-796.2,0.00018356,3]
[402333482,1768659103743,-500.0,0.00018356,3]
[402333483,1768659103752,-500.0,0.00018356,3]
[402333484,1768659103761,-679.44,0.00018356,3]
[402333485,1768659103771,-510.91,0.00018356,3]
[402333486,1768659103780,-592.71890736,0.00018356,3]
[402333487,1768659103791,-824.67,0.00018356,3]
[402333488,1768659103800,-683.59,0.00018356,3]
[402333489,1768659103809,-500.0,0.00018356,3]
[402333490,1768659103818,-490.09113196,0.00018356,3]
[402333491,1768659103828,-1224.64,0.00018356,3]
[402333492,1768659103837,-877.29,0.00018356,3]
[402333493,1768659103847,-1471.77,0.00018356,3]
[402333494,1768659103856,-1469.24,0.00018356,3]
[402333495,1768659103866,-626.27,0.00018356,3]
[402333496,1768659103876,-1013.32,0.00018356,3]
[402333497,1768659103885,-567.29,0.00018356,3]
[402333498,1768659103895,-708.52,0.00018356,3]
[402333499,1768659103904,-588.8,0.00018356,3]
[402333500,1768659103914,-965.65,0.00018356,3]
[402333501,1768659103923,-799.45,0.00018356,3]
[402333502,1768659103933,-500.0,0.00018356,3]
[402333503,1768659103944,-664.21,0.00018356,3]
[402333504,1768659103954,-500.0,0.00018356,3]
[402333505,1768659103964,-500.0,0.00018356,3]
[402333506,1768659103974,-500.0,0.00018356,3]
[402333507,1768659103985,-561.86,0.00018356,3]
[402333508,1768659103995,-962.54,0.00018356,3]
[402333509,1768659104006,-500.0,0.00018356,3]
[402333510,1768659104015,-1710.54,0.00018356,3]
[402333511,1768659104024,-1032.59,0.00018356,3]
[402333512,1768659104034,-1392.68,0.00018356,3]
[402333513,1768659104043,-500.0,0.00018356,3]
[402333514,1768659104051,-1703.95,0.00018356,3]
[402333515,1768659104061,-500.0,0.00018356,3]
[402333516,1768659104071,-328.66179956,0.00018356,3]
[402333517,1768659104082,-500.0,0.00018356,3]
[402333518,1768659104091,-627.21,0.00018356,3]
[402333519,1768659104101,-500.0,0.00018356,3]
[402333520,1768659104111,-575.03,0.00018356,3]
[402333521,1768659104123,-1013.83,0.00018356,3]
[402333522,1768659104135,-1127.64,0.00018356,3]
[402333523,1768659104145,-1930.5,0.00018356,3]
[402333524,1768659104155,-2381.04,0.00018356,3]
[402333525,1768659104164,-500.0,0.00018356,3]
[402333526,1768659104173,-500.0,0.00018356,3]
[402333527,1768659104183,-500.0,0.00018356,3]
[402333528,1768659104193,-1952.14,0.00018356,3]
[402333529,1768659104202,-1217.45,0.00018356,3]
[402333530,1768659104212,-500.0,0.00018356,3]
[402333531,1768659104221,-500.0,0.00018356,3]
[402333532,1768659104230,-1199.47,0.00018356,3]
[402333533,1768659104240,-500.0,0.00018356,3]
[402333534,1768659104249,-514.23188033,0.00018356,3]
[402333535,1768659104258,-876.92,0.00018356,3]
[402333536,1768659104268,-500.0,0.00018356,3]
[402333537,1768659104277,-574.1,0.00018356,3]
[402333538,1768659104286,-502.95,0.00018356,3]
[402333539,1768659104296,-500.0,0.00018356,3]
[402333540,1768659104305,-500.0,0.00018356,3]
[402333541,1768659104315,-547.667889,0.00018356,3]
[402333542,1768659104324,-500.0,0.00018356,3]
[402333543,1768659104333,-500.0,0.00018356,3]
[402333544,1768659104342,-500.0,0.00018356,3]
[402333545,1768659104351,-500.0,0.00018356,3]
[402333546,1768659104360,-538.51,0.00018356,3]
[402333547,1768659104369,-1407.02,0.00018356,3]
[402333548,1768659104378,-500.0,0.00018356,3]
[402333549,1768659104387,-500.0,0.00018356,3]
[402333550,1768659104396,-500.0,0.00018356,3]
[402333551,1768659104405,-500.0,0.00018356,3]
[402333552,1768659104414,-500.0,0.00018356,3]
[402333553,1768659104423,-1435.89,0.00018356,3]
[402333554,1768659104432,-500.0,0.00018356,3]
[402333555,1768659104442,-500.0,0.00018356,3]
[402333556,1768659104451,-500.0,0.00018356,3]
[402333557,1768659104460,-768.41,0.00018356,3]
[402333558,1768659104469,-500.0,0.00018356,3]
[402333559,1768659104478,-500.0,0.00018356,3]
[402333560,1768659104487,-500.0,0.00018356,3]
[402333561,1768659104497,-500.0,0.00018356,3]
[402333562,1768659104507,-500.0,0.00018356,3]
[402333563,1768659104517,-596.93,0.00018356,3]
[402333564,1768659104527,-500.0,0.00018356,3]
[402333565,1768659104536,-500.0,0.00018356,3]
[402333566,1768659104545,-500.0,0.00018356,3]
[402333567,1768659104554,-743.89,0.00018356,3]
[402333568,1768659104566,-500.0,0.00018356,3]
[402333569,1768659104575,-1553.75,0.00018356,3]
[402333570,1768659104585,-500.0,0.00018356,3]
[402333571,1768659104595,-500.0,0.00018356,3]
[402333572,1768659104604,-1798.52,0.00018356,3]
[402333573,1768659104613,-2617.38,0.00018356,3]
[402333574,1768659104623,-1531.88,0.00018356,3]
[402333575,1768659104632,-500.0,0.00018356,3]
[402333576,1768659104645,-807.81,0.00018356,3]
[402333577,1768659104656,-1265.74,0.00018356,3]
[402333578,1768659104667,-859.86,0.00018356,3]
[402333579,1768659104676,-500.0,0.00018356,3]
[402333580,1768659104686,-500.0,0.00018356,3]
[402333581,1768659104696,-500.0,0.00018356,3]
[402333582,1768659104705,-2068.32,0.00018356,3]
[402333583,1768659104715,-500.0,0.00018356,3]
[402333584,1768659104726,-826.35,0.00018356,3]
[402333585,1768659104737,-878.9,0.00018356,3]
[402333586,1768659104747,-500.0,0.00018356,3]
[402333587,1768659104758,-500.0,0.00018356,3]
[402333588,1768659104768,-753.78,0.00018356,3]
[402333589,1768659104777,-665.06,0.00018356,3]
[402333590,1768659104787,-1665.15,0.00018356,3]
[402333591,1768659104796,-500.0,0.00018356,3]
[402333592,1768659104807,-500.0,0.00018356,3]
[402333593,1768659104817,-598.07,0.00018356,3]
[402333594,1768659104827,-624.25,0.00018356,3]
[402333595,1768659104836,-642.78,0.00018356,3]
[402333596,1768659104846,-500.0,0.00018356,3]
[402333597,1768659104856,-500.0,0.00018356,3]
[402333598,1768659104868,-500.0,0.00018356,3]
[402333599,1768659104878,-500.0,0.00018356,3]
[402333600,1768659104888,-761.09,0.00018356,3]
[402333601,1768659104898,-749.97,0.00018356,3]
[402333602,1768659104909,-1622.42,0.00018356,3]
[402333603,1768659104919,-1425.42,0.00018356,3]
[402333604,1768659104930,-1097.29,0.00018356,3]
[402333605,1768659104941,-500.0,0.00018356,3]
[402333606,1768659104951,-1547.34,0.00018356,3]
[402333607,1768659104961,-500.0,0.00018356,3]
[402333608,1768659104970,-500.0,0.00018356,3]
[402333609,1768659104980,-500.0,0.00018356,3]
[402333610,1768659104991,-2020.66,0.00018356,3]
[402333611,1768659105001,-1837.73,0.00018356,3]
[402333612,1768659105011,-500.0,0.00018356,3]
[402333613,1768659105021,-14920.45,0.00018356,3]
[402333614,1768659105032,-520.01,0.00018356,3]
[402333615,1768659105043,-705.67,0.00018356,3]
[402333616,1768659105052,-500.0,0.00018356,3]
[402333617,1768659105062,-1401.0,0.00018356,3]
[402333618,1768659105072,-1215.91,0.00018356,3]
[402333619,1768659105082,-844.98,0.00018356,3]
[402333620,1768659105092,-1652.42,0.00018356,3]
[402333621,1768659105102,-500.0,0.00018356,3]
[402333622,1768659105112,-500.0,0.00018356,3]
[402333623,1768659105121,-1253.25,0.00018356,3]
[402333624,1768659105131,-500.0,0.00018356,3]
[402333625,1768659105141,-3641.66,0.00018356,3]
[402333626,1768659105151,-1451.63,0.00018356,3]
[402333627,1768659105161,-500.0,0.00018356,3]
[402333628,1768659105171,-1509.95,0.00018356,3]
[402333629,1768659105182,-500.0,0.00018356,3]
[402333630,1768659105191,-760.68,0.00018356,3]
[402333631,1768659105202,-957.46,0.00018356,3]
[402333632,1768659105212,-1880.31,0.00018356,3]
[402333633,1768659105222,-757.84,0.00018356,3]
[402333634,1768659105233,-500.0,0.00018356,3]
[402333635,1768659105242,-707.11,0.00018356,3]
[402333636,1768659105252,-500.0,0.00018356,3]
[402333637,1768659105261,-500.0,0.00018356,3]
[402333638,1768659105271,-500.0,0.00018356,3]
[402333639,1768659105280,-700.32,0.00018356,3]
[402333640,1768659105291,-500.0,0.00018356,3]
[402333641,1768659105301,-500.0,0.00018356,3]
[402333642,1768659105311,-698.65,0.00018356,3]
[402333643,1768659105320,-2050.27,0.00018356,3]
[402333644,1768659105331,-500.0,0.00018356,3]
[402333645,1768659105341,-213.48291508,0.00018356,3]
[402333646,1768659105351,-542.85,0.00018356,3]
[402333647,1768659105360,-1102.58,0.00018356,3]
[402333648,1768659105369,-500.0,0.00018356,3]
[402333649,1768659105379,-1467.06,0.00018356,3]
[402333650,1768659105388,-500.0,0.00018356,3]
[402333651,1768659105398,-699.55,0.00018356,3]
[402333652,1768659105407,-1412.19,0.00018356,3]
[402333653,1768659105418,-500.0,0.00018356,3]
[402333654,1768659105427,-500.0,0.00018356,3]
[402333655,1768659105437,-500.0,0.00018356,3]
[402333656,1768659105446,-500.0,0.00018356,3]
[402333657,1768659105456,-500.0,0.00018356,3]
[402333658,1768659105466,-500.0,0.00018356,3]
[402333659,1768659105475,-500.0,0.00018356,3]
[402333660,1768659105485,-1428.69,0.00018356,3]
[402333661,1768659105494,-722.95,0.00018356,3]
[402333662,1768659105504,-500.0,0.00018356,3]
[402333663,1768659105512,-1662.79,0.00018356,3]
[402333664,1768659105520,-500.0,0.00018356,3]
[402333665,1768659105529,-1044.14,0.00018356,3]
[402333666,1768659105538,-607.6,0.00018356,3]
[402333667,1768659105547,-1456.0,0.00018356,3]
[402333668,1768659105556,-913.11,0.00018356,3]
[402333669,1768659105566,-568.79,0.00018356,3]
[402333670,1768659105575,-561.39,0.00018356,3]
[402333671,1768659105585,-531.99,0.00018356,3]
[402333672,1768659105595,-500.0,0.00018356,3]
[402333673,1768659105605,-500.0,0.00018356,3]
[402333674,1768659105614,-316.32438621,0.00018356,3]
[402333675,1768659105624,-500.0,0.00018356,3]
[402333676,1768659105634,-1211.48,0.00018356,3]
[402333677,1768659105644,-1177.76,0.00018356,3]
[402333678,1768659105653,-500.0,0.00018356,3]
[402333679,1768659105663,-939.73,0.00018356,3]
[402333680,1768659105674,-670.95,0.00018356,3]
[402333681,1768659105684,-1326.69,0.00018356,3]
[402333682,1768659105694,-1081.34,0.00018356,3]
[402333683,1768659105704,-500.0,0.00018356,3]
[402333684,1768659105715,-512.41,0.00018356,3]
[402333685,1768659105725,-1622.28,0.00018356,3]
[402333686,1768659105735,-567.25,0.00018356,3]
[402333687,1768659105746,-1106.71,0.00018356,3]
[402333688,1768659105758,-500.0,0.00018356,3]
[402333689,1768659105768,-500.0,0.00018356,3]
[402333690,1768659105779,-1431.76,0.00018356,3]
[402333691,1768659105789,-597.09,0.00018356,3]
[402333692,1768659105799,-500.0,0.00018356,3]
[402333693,1768659105811,-500.0,0.00018356,3]
[402333694,1768659105822,-500.0,0.00018356,3]
[402333695,1768659105833,-501.51,0.00018356,3]
[402333696,1768659105843,-610.02,0.00018356,3]
[402333697,1768659105855,-197.20286288,0.00018356,3]
[402333698,1768659105868,-1010.29,0.00018356,3]
[402333699,1768659105878,-500.0,0.00018356,3]
[402333700,1768659105887,-609.3,0.00018356,3]
[402333701,1768659105897,-2815.19,0.00018356,3]
[402333702,1768659105907,-647.23,0.00018356,3]
[402333703,1768659105917,-500.0,0.00018356,3]
[402333704,1768659105927,-500.0,0.00018356,3]
[402333705,1768659105937,-2008.11,0.00018356,3]
[402333706,1768659105947,-992.91,0.00018356,3]
[402333707,1768659105956,-500.0,0.00018356,3]
[402333708,1768659105966,-500.0,0.00018356,3]
[402333709,1768659105975,-759.0,0.00018356,3]
[402333710,1768659105984,-557.01,0.00018356,3]
[402333711,1768659105994,-793.38,0.00018356,3]
[402333712,1768659106003,-561.04,0.00018356,3]
[402333713,1768659106013,-500.0,0.00018356,3]
[402333714,1768659106022,-500.0,0.00018356,3]
[402333715,1768659106031,-620.44,0.00018356,3]
[402333716,1768659106041,-599.93,0.00018356,3]
[402333717,1768659106051,-500.0,0.00018356,3]
[402333718,1768659106060,-500.0,0.00018356,3]
[402333719,1768659106070,-722.98,0.00018356,3]
[402333720,1768659106079,-500.0,0.00018356,3]
[402333721,1768659106089,-893.02,0.00018356,3]
[402333722,1768659106099,-945.42,0.00018356,3]
[402333723,1768659106292,-1045.03,0.00018356,3]
[402333724,1768659106304,-1046.6,0.00018356,3]
[402333725,1768659106314,-645.09,0.00018356,3]
[402333726,1768659106324,-500.0,0.00018356,3]
[402333727,1768659106334,-598.18,0.00018356,3]
[402333728,1768659106343,-500.0,0.00018356,3]
[402333729,1768659106354,-8441.37,0.00018356,3]
[402333730,1768659106363,-500.0,0.00018356,3]
[402333731,1768659106373,-500.0,0.00018356,3]
[402333732,1768659106383,-980.47,0.00018356,3]
[402333733,1768659106392,-1662.71,0.00018356,3]
[402333734,1768659106402,-500.0,0.00018356,3]
[402333735,1768659106411,-500.0,0.00018356,3]
[402333736,1768659106421,-500.0,0.00018356,3]
[402333737,1768659106431,-583.28,0.00018356,3]
[402333738,1768659106440,-500.0,0.00018356,3]
[402333739,1768659106450,-500.0,0.00018356,3]
[402333740,1768659106461,-916.68,0.00018356,3]
[402333741,1768659106471,-352.98387266,0.00018356,3]
[402333742,1768659106482,-500.0,0.00018356,3]
[402333743,1768659106492,-1239.92,0.00018356,3]
[402333744,1768659106501,-500.0,0.00018356,3]
[402333745,1768659106511,-959.49,0.00018356,3]
[402333746,1768659106521,-1628.03,0.00018356,3]
[402333747,1768659106532,-1330.27,0.00018356,3]
[402333748,1768659106542,-645.96,0.00018356,3]
[402333749,1768659106552,-500.0,0.00018356,3]
[402333750,1768659106562,-500.0,0.00018356,3]
[402333751,1768659106571,-500.0,0.00018356,3]
[402333752,1768659106581,-500.0,0.00018356,3]
[402333753,1768659106590,-1605.91,0.00018356,3]
[402333754,1768659106599,-2039.45,0.00018356,3]
[402333755,1768659106609,-500.0,0.00018356,3]
[402333756,1768659106619,-1033.72,0.00018356,3]
[402333757,1768659106629,-782.18,0.00018356,3]
[402333758,1768659106638,-500.0,0.00018356,3]
[402333759,1768659106647,-784.27,0.00018356,3]
[402333760,1768659106656,-500.0,0.00018356,3]
[402333761,1768659106666,-1140.99,0.00018356,3]
[402333762,1768659106675,-791.1,0.00018356,3]
[402333763,1768659106685,-500.0,0.00018356,3]
[402333764,1768659106695,-830.09,0.00018356,3]
[402333765,1768659106705,-500.0,0.00018356,3]
[402333766,1768659106714,-500.0,0.00018356,3]
[402333767,1768659106724,-3211.22,0.00018356,3]
[402333768,1768659106734,-795.5,0.00018356,3]
[402333769,1768659106744,-500.0,0.00018356,3]
[402333770,1768659106754,-500.0,0.00018356,3]
[402333771,1768659106764,-1112.08,0.00018356,3]
[402333772,1768659106773,-632.75,0.00018356,3]
[402333773,1768659106783,-500.0,0.00018356,3]
[402333774,1768659106792,-500.0,0.00018356,3]
[402333775,1768659106802,-500.0,0.00018356,3]
[402333776,1768659106812,-601.82,0.00018356,3]
[402333777,1768659106822,-598.94,0.00018356,3]
[402333778,1768659106833,-1550.67,0.00018356,3]
[402333779,1768659106843,-2433.28,0.00018356,3]
[402333780,1768659106854,-508.15,0.00018356,3]
[402333781,1768659106865,-500.0,0.00018356,3]
[402333782,1768659106876,-555.88,0.00018356,3]
[402333783,1768659106886,-500.0,0.00018356,3]
[402333784,1768659106896,-1739.47,0.00018356,3]
[402333785,1768659106905,-1598.4,0.00018356,3]
[402333786,1768659106916,-1063.53,0.00018356,3]
[402333787,1768659106925,-500.0,0.00018356,3]
[402333788,1768659106935,-1469.78,0.00018356,3]
[402333789,1768659106948,-500.0,0.00018356,3]
[402333790,1768659106959,-500.0,0.00018356,3]
[402333791,1768659106969,-934.75,0.00018356,3]
[402333792,1768659106978,-915.24,0.00018356,3]
[402333793,1768659106988,-733.19,0.00018356,3]
[402333794,1768659106998,-816.16,0.00018356,3]
[402333795,1768659107008,-1878.43,0.00018356,3]
[402333796,1768659107018,-500.0,0.00018356,3]
[402333797,1768659107028,-1089.71,0.00018356,3]
[402333798,1768659107038,-500.0,0.00018356,3]
[402333799,1768659107049,-500.0,0.00018356,3]
[402333800,1768659107058,-750.97,0.00018356,3]
[402333801,1768659107068,-500.0,0.00018356,3]
[402333802,1768659107078,-500.0,0.00018356,3]
[402333803,1768659107088,-1374.51,0.00018356,3]
[402333804,1768659107098,-1031.25,0.00018356,3]
[402333805,1768659107107,-1506.77,0.00018356,3]
[402333806,1768659107118,-500.0,0.00018356,3]
[402333807,1768659107127,-654.05,0.00018356,3]
[402333808,1768659107137,-500.0,0.00018356,3]
[402333809,1768659107147,-1254.14,0.00018356,3]
[402333810,1768659107157,-885.27,0.00018356,3]
[402333811,1768659107167,-1550.94,0.00018356,3]
[402333812,1768659107178,-500.0,0.00018356,3]
[402333813,1768659107188,-1929.23,0.00018356,3]
[402333814,1768659107199,-500.0,0.00018356,3]
[402333815,1768659107210,-871.62,0.00018356,3]
[402333816,1768659107220,-500.0,0.00018356,3]
[402333817,1768659107230,-500.0,0.00018356,3]
[402333818,1768659107240,-500.0,0.00018356,3]
[402333819,1768659107250,-1606.32,0.00018356,3]
[402333820,1768659107260,-548.96,0.00018356,3]
[402333821,1768659107269,-500.0,0.00018356,3]
[402333822,1768659107279,-500.0,0.00018356,3]
[402333823,1768659107289,-500.0,0.00018356,3]
[402333824,1768659107298,-747.4,0.00018356,3]
[402333825,1768659107307,-977.24,0.00018356,3]
[402333826,1768659107317,-500.0,0.00018356,3]
[402333827,1768659107326,-500.0,0.00018356,3]
[402333828,1768659107337,-500.0,0.00018356,2]
[402333829,1768659107347,-1149.89,0.00018356,3]
[402333830,1768659107356,-426.38732043,0.00018356,3]
[402333831,1768659107366,-500.0,0.00018356,3]
[402333832,1768659107376,-500.0,0.00018356,3]
[402333833,1768659107385,-500.0,0.00018356,3]
[402333834,1768659107395,-500.0,0.00018356,3]
[402333835,1768659107404,-500.0,0.00018356,2]
[402333836,1768659107414,-500.0,0.00018356,3]
[402333837,1768659107424,-574.13,0.00018356,3]
[402333838,1768659107433,-602.36,0.00018356,3]
[402333839,1768659107443,-500.0,0.00018356,2]
[402333840,1768659107453,-800.0,0.00018358,2]
[402333841,1768659107462,-1409.0,0.00018367,2]
[402333842,1768659107472,-1926.0,0.00018376,2]
[402333843,1768659107481,-800.0,0.0001838,2]
[402333844,1768659107491,-800.0,0.0001838,2]
[402333845,1768659107500,-519.13208414,0.00018399,2]
[402333846,1768659107510,-13205.58024204,0.00018429,2]
[402333847,1768659107519,-800.0,0.00018451,2]
[402333848,1768659107528,-800.0,0.00018458,2]
[402333849,1768659107537,-729.0,0.00018461,2]
[402333850,1768659107546,-1409.0,0.00018474,2]
[402333851,1768659107556,-800.0,0.00018484,2]
[402333852,1768659107565,-317.531912,0.00018493,2]
[402333853,1768659107574,-800.0,0.00018498,2]
[402333854,1768659107584,-160.0,0.000185,3]
[402333855,1768659107593,-800.0,0.00018514,2]
[402333856,1768659107602,-800.0,0.00018522,2]
[402333857,1768659107611,-800.0,0.00018532,2]
[402333858,1768659107621,-207.27036298,0.00018533,2]
[402333859,1768659107631,-733.0,0.00018536,2]
[402333860,1768659107645,-800.0,0.00018537,2]
[402333861,1768659107655,-800.0,0.00018566,2]
[402333862,1768659107664,-800.0,0.00018569,2]
[402333863,1768659107673,-452.52060236,0.00018572,40]
[402333864,1768659107682,-800.0,0.00018594,2]
[402333865,1768659107691,-1059.18977848,0.000186,2]
[402333866,1768659107701,-1028809.47023494,0.0001862,2]
[402333867,1768659108211,-5449.62274866,0.0001862,2]
[402333868,1768659108531,-2000.0,0.00014335,2]
[402333869,1768659108542,-225.94082858,0.00014335,2]
[402333870,1768659108551,-637.573938,0.00016438,3]
[402333871,1768659109477,-542.41,0.00016438,3]
[402333872,1768659109533,-1067.616062,0.00016438,3]
[402333873,1768659109544,-500.0,0.00016438,3]
[402333874,1768659109554,-550.81,0.00016438,3]
[402333875,1768659109566,-1004.78009265,0.00016438,2]
[402333876,1768659109576,-500.0,0.00016438,3]
[402333877,1768659109586,-2247.6,0.00016712,3]
[402333878,1768659109595,-550.81,0.00016712,3]
[402333879,1768659109605,-500.0,0.00016712,3]
[402333880,1768659109615,-2247.6,0.00016986,3]
[402333881,1768659109624,-550.81,0.00016986,3]
[402333882,1768659109633,-500.0,0.00016986,3]
[402333883,1768659109642,-2247.6,0.0001726,3]
[402333884,1768659109651,-550.81,0.0001726,3]
[402333885,1768659109661,-500.0,0.0001726,3]
[402333886,1768659109670,-2247.6,0.00017534,3]
[402333887,1768659109680,-550.81,0.00017534,3]
[402333888,1768659109689,-500.0,0.00017534,3]
[402333889,1768659109699,-2247.6,0.00017808,3]
[402333890,1768659109707,-550.81,0.00017808,3]
[402333891,1768659109717,-500.0,0.00017808,3]
[402333892,1768659109727,-502.51,0.00018082,3]
[402333893,1768659109736,-2247.6,0.00018082,3]
[402333894,1768659109746,-550.81,0.00018082,3]
[402333895,1768659109755,-502.51,0.00018356,3]
[402333896,1768659109764,-2247.6,0.00018356,3]
[402333897,1768659109774,-550.81,0.00018356,3]
[402333898,1768659109783,-57540.37377304,0.0001862,2]
[402333899,1768659109795,-8522.75858177,0.0001862,2]
[402333900,1768659109806,-2206.11478538,0.0001862,2]
[402333901,1768659109817,-16064.94391865,0.0001862,2]
[402333902,1768659110062,-500.0,0.00016438,3]
[402333903,1768659110072,-500.0,0.00018082,3]
[402333904,1768659110081,-500.0,0.00018356,3]
[402333905,1768659110091,-12031.16937591,0.0001862,2]
[402333906,1768659110103,-2362.26774946,0.0001862,2]
[402333937,1768659992024,229.930248,8.93e-05,2]
[402333938,1768660000728,2020.51,8.93e-05,2]
[402334160,1768660238452,-566.0,0.000104,2]
[402334162,1768660238463,-500.0,0.000104,2]
[402334164,1768660238473,-500.0,0.000104,2]
[402334166,1768660238483,-500.0,0.000104,2]
[402334168,1768660238492,-275.37852339,0.000104,2]
[402334169,1768660238501,-324.9466576,0.000124,2]
[402334171,1768660238510,-108.99020633,0.00013273,2]
[402334174,1768660238526,-391.00979367,0.00013273,2]
[402334176,1768660238535,-500.0,0.00013273,2]
[402334178,1768660238545,-300.0,0.00013598,2]
[402334180,1768660238555,-1235.13170679,0.00013599,2]
[402334182,1768660238564,-321.186,0.00013698,2]
[402334184,1768660238574,-500.0,0.00013698,2]
[402334186,1768660238584,-500.0,0.00013698,2]
[402334188,1768660238593,-39819.45693673,0.00013698,2]
[402334190,1768660238603,-476.417731,0.00013699,2]
[402334192,1768660238613,-250.0,0.00013742,2]